bitfinex/quotes_BTCUSD_20250623
["timestamp","ask_amount","ask_price","bid_price","bid_amount"]
[1750700689134,0.001,102490.0,102480.0,1.71958169]
[1750700689567,0.02905223,102540.0,102520.0,0.19508388]
[1750700689808,0.02905223,102540.0,102530.0,0.18992]
[1750700689809,0.11546028,102540.0,102530.0,0.18992]
[1750700690074,0.08640805,102540.0,102530.0,0.18992]
[1750700690570,0.08640805,102540.0,102530.0,0.18892]
[1750700690786,0.08740805,102540.0,102530.0,0.18892]
[1750700691004,0.08740805,102540.0,102530.0,0.38398485]
[1750700691228,0.05700805,102540.0,102530.0,0.18892]
[1750700691442,0.05800805,102540.0,102530.0,0.18892]
[1750700692365,0.05700805,102540.0,102530.0,0.18892]
[1750700692605,0.08610805,102540.0,102530.0,0.18892]
[1750700692801,0.08610805,102540.0,102530.0,0.19092]
[1750700693036,0.08610805,102540.0,102530.0,0.19192]
[1750700695238,0.08610805,102540.0,102530.0,0.38698485]
[1750700695489,0.02340805,102540.0,102530.0,0.38698485]
[1750700695916,0.02340805,102540.0,102530.0,0.39673799]
[1750700696136,0.00013805,102540.0,102530.0,0.39673809]
[1750700696360,0.00013805,102540.0,102530.0,0.52629624]
[1750700696594,0.00013805,102540.0,102530.0,0.53604881]
[1750700697924,0.00013805,102540.0,102530.0,0.55058966]
[1750700698132,0.00013805,102540.0,102530.0,0.57498966]
[1750700698360,0.00013805,102540.0,102530.0,0.31787062]
[1750700698583,0.00013805,102540.0,102530.0,0.57722348]
[1750700698819,0.00013805,102540.0,102530.0,0.58697605]
[1750700699044,0.00013805,102540.0,102530.0,0.5947328]
[1750700700199,0.00013805,102540.0,102530.0,0.6191328]
[1750700700428,0.00013805,102540.0,102530.0,1.70624752]
[1750700700913,0.00013805,102540.0,102530.0,0.84027365]
[1750700701140,0.00013805,102540.0,102530.0,0.82407365]
[1750700701370,0.00013805,102540.0,102530.0,1.07347365]
[1750700701590,0.00013805,102540.0,102530.0,1.08767365]
[1750700701824,0.00013805,102540.0,102530.0,1.09067365]
[1750700702044,0.00013805,102540.0,102530.0,1.70304752]
[1750700702493,0.00013805,102540.0,102530.0,0.3471328]
[1750700702720,0.00013805,102540.0,102530.0,0.5964128]
[1750700702943,0.00013805,102540.0,102530.0,0.98990667]
[1750700703210,0.00013805,102540.0,102530.0,1.22928752]
[1750700703426,0.00013805,102540.0,102530.0,0.61091365]
[1750700703650,0.00013805,102540.0,102530.0,0.61391365]
[1750700704308,0.00013805,102540.0,102530.0,1.37088752]
[1750700704766,0.62047387,102590.0,102550.0,0.20476313]
[1750700704994,0.62047387,102590.0,102560.0,0.2492]
[1750700704995,0.69575076,102580.0,102560.0,0.2492]
[1750700705214,0.69575076,102580.0,102560.0,0.44420614]
[1750700705432,0.07937689,102580.0,102560.0,0.44420614]
[1750700705874,0.69575076,102580.0,102560.0,0.44420614]
[1750700706100,0.61637387,102580.0,102560.0,0.54450553]
[1750700706313,0.61637387,102580.0,102570.0,0.19498878]
[1750700706535,0.62693448,102590.0,102560.0,0.54450553]
[1750700706756,0.34,102580.0,102560.0,0.34949939]
[1750700707054,0.95637387,102580.0,102560.0,0.34949939]
[1750700707787,0.95637387,102580.0,102560.0,0.5445069]
[1750700708023,1.02257387,102580.0,102560.0,0.5445069]
[1750700708470,1.02557387,102580.0,102560.0,0.5445069]
[1750700708726,1.02557387,102580.0,102560.0,0.34949939]
[1750700708955,0.0692,102580.0,102560.0,0.5445068]
[1750700709186,0.68557387,102580.0,102560.0,0.5445068]
[1750700710337,0.6045872,102580.0,102570.0,0.19498878]
[1750700710555,0.9445872,102580.0,102560.0,0.5445068]
[1750700711008,0.9445872,102580.0,102560.0,0.56400729]
[1750700711230,0.346,102580.0,102570.0,0.19498878]
[1750700711447,0.4031,102580.0,102560.0,0.5445068]
[1750700711888,0.9061872,102580.0,102570.0,0.19498878]
[1750700712130,0.3702,102580.0,102560.0,0.5445068]
[1750700712340,0.9417872,102580.0,102570.0,0.19498878]
[1750700712555,0.343,102580.0,102570.0,0.19498878]
[1750700712784,0.03476061,102590.0,102580.0,0.19496977]
[1750700713024,0.00456061,102590.0,102580.0,0.48398916]
[1750700713241,0.00456061,102590.0,102580.0,0.51323347]
[1750700713482,0.00456061,102590.0,102580.0,0.49373764]
[1750700713702,0.00456061,102590.0,102580.0,0.51323423]
[1750700713917,0.00456061,102590.0,102580.0,0.52298233]
[1750700714138,0.00456061,102590.0,102580.0,0.53272968]
[1750700714580,0.00556061,102590.0,102580.0,0.53272968]
[1750700715085,0.00556061,102590.0,102580.0,0.34400968]
[1750700715307,0.00656061,102590.0,102580.0,1.14577773]
[1750700715538,0.0001,102610.0,102600.0,0.22417038]
[1750700715778,0.00023467,102610.0,102600.0,1.13849697]
[1750700718028,0.20013457,102650.0,102640.0,0.54367519]
[1750700718936,0.20013457,102650.0,102640.0,0.54567519]
[1750700719576,0.20013457,102650.0,102640.0,0.55541788]
[1750700719792,0.20013457,102650.0,102640.0,0.54567519]
[1750700721521,0.20013457,102650.0,102640.0,0.56516029]
[1750700721744,0.20013457,102650.0,102640.0,0.54567519]
[1750700721961,0.20013457,102650.0,102640.0,0.55541779]
[1750700722176,0.20013457,102650.0,102640.0,0.56516029]
[1750700722394,0.20013457,102650.0,102640.0,0.57490251]
[1750700722690,0.20013457,102650.0,102640.0,0.58464463]
[1750700722906,0.20013457,102650.0,102640.0,0.57490251]
[1750700723146,0.20013457,102650.0,102640.0,0.68148567]
[1750700723362,0.20013457,102650.0,102640.0,0.59918567]
[1750700723770,0.20013457,102650.0,102640.0,0.3263827]
[1750700724008,0.20013457,102650.0,102640.0,0.29715519]
[1750700724227,0.20013457,102650.0,102640.0,0.55421798]
[1750700724434,0.20013457,102650.0,102640.0,0.58824326]
[1750700725074,0.20013457,102650.0,102640.0,0.62104326]
[1750700726570,0.20013457,102650.0,102640.0,0.65304326]
[1750700726785,0.20013457,102650.0,102640.0,1.31836403]
[1750700727426,0.20013457,102650.0,102640.0,0.70304326]
[1750700727673,0.20013457,102650.0,102640.0,0.70104326]
[1750700727889,0.20013457,102650.0,102640.0,0.71104326]
[1750700730857,0.20013457,102650.0,102640.0,0.41372326]
[1750700731082,0.20013457,102650.0,102640.0,0.16941939]
[1750700731296,0.26483457,102650.0,102640.0,0.55215519]
[1750700731993,0.26483457,102650.0,102640.0,0.54815519]
[1750700732206,0.26483457,102650.0,102640.0,0.54211519]
[1750700732649,0.26483457,102650.0,102640.0,0.54311519]
[1750700733560,0.26483457,102650.0,102640.0,0.54511519]
[1750700733768,0.26483457,102650.0,102640.0,0.54411519]
[1750700733989,0.26483457,102650.0,102640.0,0.54311519]
[1750700734246,0.26483457,102650.0,102640.0,0.54411519]
[1750700734919,0.26483457,102650.0,102640.0,0.54393117]
[1750700735384,0.23233457,102650.0,102640.0,0.55367377]
[1750700735648,0.20013457,102650.0,102640.0,0.5731583]
[1750700735886,0.20013457,102650.0,102640.0,1.33239681]
[1750700736124,0.20013457,102650.0,102640.0,1.39539681]
[1750700736806,0.20013457,102650.0,102640.0,1.78519681]
[1750700737027,0.20013457,102650.0,102640.0,1.78419681]
[1750700737246,0.20013457,102650.0,102640.0,1.78319681]
[1750700737656,0.20013457,102650.0,102640.0,1.73098914]
[1750700737873,0.20013457,102650.0,102640.0,1.70781992]
[1750700738157,0.20013457,102650.0,102640.0,1.71481992]
[1750700738376,0.20013457,102650.0,102640.0,1.74167964]
[1750700738594,0.20013457,102650.0,102640.0,1.74298914]
[1750700738809,0.20013457,102650.0,102640.0,1.71881992]
[1750700740309,0.20013457,102650.0,102640.0,1.63768756]
[1750700741493,0.20013457,102650.0,102640.0,1.63704756]
[1750700742300,0.13581388,102650.0,102640.0,2.17123597]
[1750700743568,0.12819799,102650.0,102640.0,2.17123597]
[1750700743783,0.06586951,102650.0,102640.0,2.17123597]
[1750700744431,0.0041,102670.0,102660.0,0.67858021]
[1750700744647,0.0001,102700.0,102690.0,0.77270318]
[1750700744860,0.00056015,102700.0,102690.0,1.11936257]
[1750700745059,0.00056015,102700.0,102690.0,0.58517416]
[1750700745698,0.00056015,102700.0,102690.0,1.11936257]
[1750700746118,0.00056015,102700.0,102690.0,0.55596117]
[1750700746327,0.06236015,102700.0,102690.0,0.56089621]
[1750700746536,0.06236015,102700.0,102690.0,0.57063397]
[1750700746753,0.06236015,102700.0,102690.0,0.58037163]
[1750700746993,0.53418841,102720.0,102690.0,0.56089621]
[1750700747194,0.56158557,102720.0,102700.0,0.10029939]
[1750700747413,0.53418841,102710.0,102700.0,0.10029939]
[1750700747658,0.53418841,102710.0,102700.0,0.24624]
[1750700747867,0.53432637,102720.0,102700.0,0.24624]
[1750700748086,0.56158714,102720.0,102700.0,0.24624]
[1750700748253,0.56158714,102720.0,102680.0,0.19477989]
[1750700748454,0.53418841,102700.0,102680.0,0.10029939]
[1750700748793,0.55235801,102700.0,102690.0,0.18712]
[1750700748942,0.34,102690.0,102680.0,0.18708]
[1750700749162,0.90144476,102690.0,102680.0,0.18708]
[1750700749592,0.90144476,102690.0,102660.0,0.19481182]
[1750700749791,0.0181696,102690.0,102670.0,0.48217728]
[1750700750030,0.0181696,102690.0,102680.0,0.19477989]
[1750700750031,0.0811696,102690.0,102680.0,0.19477989]
[1750700750234,0.0811696,102690.0,102670.0,0.50165677]
[1750700750442,0.063,102690.0,102670.0,0.48217728]
[1750700750677,0.11024641,102690.0,102670.0,0.48217728]
[1750700750916,0.47551692,102690.0,102670.0,0.48217728]
[1750700751133,0.47351692,102690.0,102670.0,0.48217728]
[1750700751343,0.47551692,102690.0,102680.0,0.19477989]
[1750700751990,0.47551692,102690.0,102670.0,0.48217728]
[1750700752438,0.47551692,102690.0,102680.0,0.19477989]
[1750700752646,0.10291692,102690.0,102680.0,0.29507928]
[1750700752862,0.39567051,102690.0,102680.0,0.29507928]
[1750700753260,0.36527051,102690.0,102680.0,0.29507928]
[1750700753571,0.36327051,102690.0,102680.0,0.29507928]
[1750700753787,0.36327051,102690.0,102680.0,0.30481827]
[1750700754430,0.02327051,102690.0,102680.0,0.31455707]
[1750700754645,0.02327051,102690.0,102680.0,0.29507928]
[1750700754876,0.02327051,102690.0,102680.0,0.31455679]
[1750700755083,0.08757051,102690.0,102680.0,0.29507928]
[1750700755301,0.08757051,102690.0,102680.0,0.48199928]
[1750700756587,0.08757051,102690.0,102680.0,0.54019928]
[1750700756803,0.08757051,102690.0,102680.0,0.34541939]
[1750700757009,0.11664412,102690.0,102680.0,0.54019928]
[1750700757603,0.05234412,102690.0,102680.0,0.55967698]
[1750700757820,0.05234412,102690.0,102680.0,0.55967717]
[1750700758248,0.05234412,102690.0,102680.0,0.55967679]
[1750700758446,0.02327051,102690.0,102680.0,0.56941531]
[1750700758690,0.02327051,102690.0,102680.0,0.55967698]
[1750700759122,0.02327051,102690.0,102680.0,0.18672]
[1750700759123,0.08647051,102690.0,102680.0,0.18672]
[1750700759336,0.11554412,102690.0,102680.0,0.18672]
[1750700759540,0.15430893,102690.0,102680.0,0.18672]
[1750700759756,0.11554412,102690.0,102680.0,0.18672]
[1750700760399,0.15430893,102690.0,102680.0,0.18672]
[1750700761148,0.0631,102680.0,102670.0,0.05832]
[1750700761452,0.11547014,102680.0,102670.0,0.34525939]
[1750700762352,0.11547014,102680.0,102670.0,0.10229939]
[1750700762577,0.11547014,102680.0,102670.0,0.34767954]
[1750700762801,0.11547014,102680.0,102670.0,0.00246015]
[1750700762802,1.02842336,102680.0,102670.0,0.00246015]
[1750700763027,1.02842336,102680.0,102670.0,0.18902015]
[1750700763028,1.65319394,102680.0,102670.0,0.18902015]
[1750700763249,1.67940215,102680.0,102670.0,0.00246015]
[1750700763702,0.4027,102650.0,102640.0,0.005]
[1750700763927,1.05727622,102650.0,102640.0,0.005]
[1750700764157,1.0184293,102650.0,102640.0,0.005]
[1750700764595,1.05724629,102650.0,102640.0,0.005]
[1750700764808,1.15754568,102650.0,102640.0,0.005]
[1750700765027,1.11872869,102650.0,102640.0,0.005]
[1750700765458,1.15752249,102650.0,102640.0,0.005]
[1750700766112,1.16052249,102650.0,102640.0,0.005]
[1750700766322,0.49684468,102650.0,102640.0,0.19148]
[1750700766530,1.03103309,102650.0,102640.0,0.19148]
[1750700766733,0.99223929,102650.0,102640.0,0.19148]
[1750700767176,1.13133248,102650.0,102640.0,0.005]
[1750700767420,1.09253868,102650.0,102640.0,0.005]
[1750700768760,1.06345831,102650.0,102640.0,0.005]
[1750700769660,0.5292699,102650.0,102640.0,0.005]
[1750700769874,1.06345831,102650.0,102640.0,0.005]
[1750700770770,1.07169427,102650.0,102640.0,0.005]
[1750700771641,1.04842376,102650.0,102640.0,0.005]
[1750700772160,1.07162762,102650.0,102640.0,0.005]
[1750700772372,1.04842376,102650.0,102640.0,0.005]
[1750700772825,1.68378228,102650.0,102640.0,0.005]
[1750700773030,0.87418841,102610.0,102600.0,0.06232]
[1750700773250,0.93788841,102610.0,102600.0,0.00413457]
[1750700773680,1.62487705,102610.0,102600.0,0.00333457]
[1750700773889,6.67487705,102610.0,102600.0,0.00333457]
[1750700774100,6.6894179,102610.0,102600.0,0.00333457]
[1750700775807,6.6914179,102610.0,102600.0,0.00333457]
[1750700776302,6.6924179,102610.0,102600.0,0.00333457]
[1750700777154,1.09368864,102610.0,102600.0,0.00333457]
[1750700777816,1.0704978,102610.0,102600.0,0.00333457]
[1750700778228,1.26468621,102610.0,102600.0,0.00333457]
[1750700778450,1.6756756,102610.0,102600.0,0.00333457]
[1750700778648,1.72811486,102610.0,102600.0,0.00333457]
[1750700778866,1.62781547,102610.0,102600.0,0.00333457]
[1750700779289,1.09362706,102610.0,102600.0,0.00333457]
[1750700780846,0.53718841,102610.0,102600.0,0.00333457]
[1750700781272,0.003,102610.0,102600.0,0.00333457]
[1750700781499,0.87718841,102610.0,102600.0,0.00333457]
[1750700782116,0.91008841,102610.0,102600.0,0.00333457]
[1750700782965,0.94048841,102610.0,102600.0,0.00333457]
[1750700785190,1.0407878,102610.0,102600.0,0.00333457]
[1750700786759,1.06393762,102610.0,102600.0,0.00333457]
[1750700787434,0.90336339,102610.0,102600.0,0.00333457]
[1750700787646,0.90338055,102610.0,102600.0,0.00333457]
[1750700787917,0.3729,102610.0,102600.0,0.00333457]
[1750700788122,0.87418841,102610.0,102600.0,0.00333457]
[1750700788539,0.89737639,102610.0,102600.0,0.00333457]
[1750700789422,0.89737639,102610.0,102600.0,0.19826634]
[1750700789627,0.89737639,102610.0,102600.0,0.00333457]
[1750700790920,0.90237639,102610.0,102600.0,0.00333457]
[1750700791330,0.93467639,102610.0,102600.0,0.00333457]
[1750700791537,0.96737639,102610.0,102600.0,0.00333457]
[1750700791750,1.06767578,102610.0,102600.0,0.00333457]
[1750700792393,1.09675615,102610.0,102600.0,0.00333457]
[1750700793832,0.93145676,102610.0,102600.0,0.00333457]
[1750700794467,0.90237639,102610.0,102600.0,0.19826634]
[1750700794900,0.36818798,102610.0,102600.0,0.19826634]
[1750700795319,0.36818798,102610.0,102600.0,0.38378634]
[1750700797466,0.39726835,102610.0,102600.0,0.38378634]
[1750700799550,0.39726835,102610.0,102600.0,0.18885457]
[1750700799754,0.93145676,102610.0,102600.0,0.18885457]
[1750700799933,0.97025056,102610.0,102600.0,0.38378634]
[1750700800162,0.43606215,102610.0,102600.0,0.18885457]
[1750700800370,0.43606215,102610.0,102600.0,0.38378634]
[1750700801043,0.39726835,102610.0,102600.0,0.38378634]
[1750700801456,0.39726835,102610.0,102600.0,0.18885457]
[1750700801457,0.43606215,102610.0,102600.0,0.18885457]
[1750700801877,1.03275056,102610.0,102600.0,0.00333457]
[1750700802081,1.02314677,102610.0,102600.0,0.00333457]
[1750700802287,1.13028761,102610.0,102600.0,0.00333457]
[1750700802485,1.07201723,102610.0,102600.0,0.00333457]
[1750700803303,1.06701723,102610.0,102600.0,0.00333457]
[1750700804392,0.49091375,102610.0,102600.0,0.00333457]
[1750700804615,0.460494,102610.0,102600.0,0.19826634]
[1750700804835,0.43129857,102610.0,102600.0,0.29856573]
[1750700805052,0.09129857,102610.0,102600.0,0.33086573]
[1750700805266,0.05237687,102610.0,102600.0,0.33086573]
[1750700805487,0.39237687,102610.0,102600.0,0.34061231]
[1750700805744,0.39237687,102610.0,102600.0,0.33086573]
[1750700805972,0.39237687,102610.0,102600.0,0.3503587]
[1750700806195,0.39237687,102610.0,102600.0,0.33086573]
[1750700806410,0.39237687,102610.0,102600.0,0.32586573]
[1750700807093,0.39237687,102610.0,102600.0,0.33561222]
[1750700807298,0.36318798,102610.0,102600.0,0.38820472]
[1750700807711,0.36318798,102610.0,102600.0,0.39795073]
[1750700807915,0.36318798,102610.0,102600.0,0.40769665]
[1750700808360,0.36318798,102610.0,102600.0,0.4252375]
[1750700808582,0.36318798,102610.0,102600.0,0.41549158]
[1750700808798,0.36318798,102610.0,102600.0,0.40299946]
[1750700809265,0.36318798,102610.0,102600.0,0.37871222]
[1750700809494,0.36318798,102610.0,102600.0,0.38845861]
[1750700809729,0.36318798,102610.0,102600.0,0.30356573]
[1750700810626,0.36318798,102610.0,102600.0,0.32305861]
[1750700810872,0.36318798,102610.0,102600.0,0.31331231]
[1750700811109,0.36318798,102610.0,102600.0,0.332805]
[1750700811399,0.36318798,102610.0,102600.0,0.363405]
[1750700811867,0.36318798,102610.0,102600.0,0.3536587]
[1750700812366,0.36318798,102610.0,102600.0,0.34391231]
[1750700812596,0.36318798,102610.0,102600.0,0.36340519]
[1750700812818,0.36318798,102610.0,102600.0,0.3536588]
[1750700813047,0.36318798,102610.0,102600.0,0.34391212]
[1750700813310,0.36318798,102610.0,102600.0,0.35365842]
[1750700813536,0.36318798,102610.0,102600.0,0.34391212]
[1750700813761,0.34,102610.0,102600.0,0.33416573]
[1750700813986,0.34,102610.0,102600.0,0.30356573]
[1750700814435,0.34,102610.0,102600.0,0.31331222]
[1750700815120,0.34,102610.0,102600.0,0.30356573]
[1750700815595,0.34,102610.0,102600.0,0.01]
[1750700815883,1.06144046,102610.0,102600.0,0.01]
[1750700816123,1.09062935,102610.0,102600.0,0.19468]
[1750700816325,1.11993735,102610.0,102600.0,0.19468]
[1750700816753,1.15885905,102610.0,102600.0,0.007]
[1750700816970,0.52214894,102610.0,102600.0,0.19164]
[1750700817189,0.39266066,102610.0,102600.0,0.19364]
[1750700817401,0.89754107,102610.0,102600.0,0.18664]
[1750700817617,1.09034446,102610.0,102600.0,0.1886]
[1750700817831,0.92684507,102610.0,102600.0,0.1886]
[1750700818047,0.39265666,102610.0,102600.0,0.1866]
[1750700818259,0.39265666,102610.0,102600.0,0.1916]
[1750700818454,0.36335266,102610.0,102600.0,0.1916]
[1750700818738,0.36335266,102610.0,102600.0,0.1896]
[1750700818955,0.36335266,102610.0,102600.0,0.1916]
[1750700819482,0.89754107,102610.0,102600.0,0.1916]
[1750700820426,0.42765266,102610.0,102600.0,0.1916]
[1750700820647,0.92954107,102610.0,102600.0,0.1916]
[1750700820898,0.39535266,102610.0,102600.0,0.1916]
[1750700821163,0.34,102610.0,102600.0,0.1916]
[1750700821591,0.87418841,102610.0,102600.0,0.1916]
[1750700821811,0.93698841,102610.0,102600.0,0.1916]
[1750700822023,0.90418841,102610.0,102600.0,0.1916]
[1750700823145,0.93658841,102610.0,102600.0,0.19148]
[1750700823600,1.06025358,102610.0,102600.0,0.007]
[1750700823835,1.06025358,102610.0,102600.0,0.005]
[1750700824063,1.60668693,102610.0,102600.0,0.005]
[1750700824299,0.0624,102590.0,102580.0,0.18456]
[1750700824502,0.0624,102590.0,102580.0,0.18469467]
[1750700824503,0.59658841,102590.0,102580.0,0.18469467]
[1750700824944,0.59658841,102590.0,102580.0,0.00033467]
[1750700825168,1.0368878,102590.0,102580.0,0.00033467]
[1750700825616,1.0368878,102590.0,102580.0,0.00733467]
[1750700826065,1.0368878,102590.0,102580.0,0.00033467]
[1750700826281,1.0368878,102590.0,102580.0,0.00533467]
[1750700826505,1.0368878,102590.0,102580.0,0.00733467]
[1750700827121,1.0368878,102590.0,102580.0,0.00533467]
[1750700827343,1.0662018,102590.0,102580.0,0.00533467]
[1750700827555,1.0662018,102590.0,102580.0,0.00033467]
[1750700827929,1.0662018,102590.0,102580.0,0.00233467]
[1750700831007,0.53201339,102590.0,102580.0,0.00033467]
[1750700831243,1.0044878,102590.0,102580.0,0.00033467]
[1750700831459,0.02931,102600.0,102580.0,0.37946444]
[1750700831677,0.02931,102600.0,102580.0,0.51236383]
[1750700831678,0.001,102590.0,102580.0,0.51236383]
[1750700832112,0.87418841,102600.0,102580.0,0.18445467]
[1750700832331,0.53418841,102590.0,102580.0,0.18445467]
[1750700832557,0.34,102600.0,102580.0,0.37942444]
[1750700832782,0.0001,102610.0,102590.0,0.40722705]
[1750700833007,0.53428841,102610.0,102600.0,0.18408]
[1750700833719,0.87428841,102610.0,102600.0,0.18308]
[1750700834356,0.3401,102610.0,102600.0,0.18308]
[1750700834580,0.87428841,102610.0,102600.0,0.18508]
[1750700835468,0.87428841,102610.0,102600.0,0.18608]
[1750700836907,0.93858841,102610.0,102600.0,0.003]
[1750700837124,1.0388878,102610.0,102600.0,0.003]
[1750700837346,1.59638912,102610.0,102600.0,0.003]
[1750700837768,1.61092997,102610.0,102600.0,0.003]
[1750700837773,6.66092997,102610.0,102600.0,0.003]
[1750700837989,6.66092997,102610.0,102580.0,0.00033467]
[1750700837990,5.98848841,102590.0,102580.0,0.00033467]
[1750700838210,1.06210541,102590.0,102580.0,0.00033467]
[1750700838440,0.527917,102590.0,102580.0,0.00033467]
[1750700838664,0.0021,102610.0,102580.0,0.32839156]
[1750700838906,0.0021,102610.0,102580.0,0.42869095]
[1750700839129,0.0021,102610.0,102580.0,0.62365468]
[1750700839130,0.53528841,102610.0,102580.0,0.62365468]
[1750700839351,0.87418841,102600.0,102580.0,0.06613467]
[1750700839571,0.87418841,102590.0,102580.0,0.00133467]
[1750700839797,1.0387878,102590.0,102580.0,0.00133467]
[1750700840239,1.0681048,102590.0,102580.0,0.00233467]
[1750700840452,1.0071878,102590.0,102580.0,0.00133467]
[1750700840665,1.0071878,102590.0,102580.0,0.00033467]
[1750700841339,0.34,102590.0,102580.0,0.00033467]
[1750700841575,0.34,102590.0,102580.0,0.00333467]
[1750700841793,0.87418841,102590.0,102580.0,0.00033467]
[1750700842454,0.87418841,102590.0,102580.0,0.00233467]
[1750700842922,0.34,102590.0,102580.0,0.00233467]
[1750700843149,0.53418841,102590.0,102580.0,0.00333467]
[1750700843354,0.53418841,102590.0,102580.0,0.00233467]
[1750700843627,0.059316,102600.0,102580.0,0.00633467]
[1750700843868,0.6972878,102590.0,102580.0,0.00633467]
[1750700844343,0.6972878,102590.0,102580.0,0.00233467]
[1750700844779,0.6972878,102590.0,102580.0,0.00133467]
[1750700844993,1.0372878,102590.0,102580.0,0.00033467]
[1750700845704,1.0372878,102590.0,102580.0,0.00133467]
[1750700845933,0.50309939,102590.0,102580.0,0.00133467]
[1750700846156,1.0053878,102590.0,102580.0,0.00233467]
[1750700846370,0.34,102590.0,102580.0,0.00233467]
[1750700846604,0.87418841,102590.0,102580.0,0.00233467]
[1750700847478,0.87418841,102590.0,102580.0,0.18609467]
[1750700848372,0.34,102590.0,102580.0,0.18609467]
[1750700848588,0.87418841,102590.0,102580.0,0.18609467]
[1750700848820,0.34,102590.0,102580.0,0.00233467]
[1750700849119,0.87418841,102590.0,102580.0,0.00233467]
[1750700849336,1.0727194,102590.0,102580.0,0.00233467]
[1750700849556,1.0357878,102590.0,102580.0,0.00233467]
[1750700850026,1.0357878,102590.0,102580.0,0.00133467]
[1750700850241,1.0387878,102590.0,102580.0,0.00133467]
[1750700850722,1.0387878,102590.0,102580.0,0.00033467]
[1750700850724,1.0357878,102590.0,102580.0,0.00033467]
[1750700850921,1.0387878,102590.0,102580.0,0.00033467]
[1750700851175,1.0407878,102590.0,102580.0,0.00033467]
[1750700852380,1.05532865,102590.0,102580.0,0.00033467]
[1750700852582,6.10532865,102590.0,102580.0,0.00033467]
[1750700854213,6.65427212,102590.0,102580.0,0.00033467]
[1750700854625,6.07008371,102590.0,102580.0,0.00033467]
[1750700854837,6.60427212,102590.0,102580.0,0.00033467]
[1750700854980,5.57114024,102590.0,102580.0,0.00033467]
[1750700855212,6.10532865,102590.0,102580.0,0.00033467]
[1750700855459,6.13772771,102590.0,102580.0,0.00033467]
[1750700855693,5.66037885,102590.0,102580.0,0.00033467]
[1750700855900,6.1621682,102590.0,102580.0,0.00033467]
[1750700858085,5.12834085,102570.0,102560.0,0.004]
[1750700858291,6.10282865,102570.0,102560.0,0.004]
[1750700858501,6.20312804,102570.0,102560.0,0.004]
[1750700859137,6.20312804,102570.0,102560.0,0.005]
[1750700859566,6.20312804,102570.0,102560.0,0.006]
[1750700859775,6.20312804,102570.0,102560.0,0.005]
[1750700860151,5.96100419,102570.0,102560.0,0.005]
[1750700860705,5.96100419,102570.0,102560.0,0.004]
[1750700860932,5.8607048,102570.0,102560.0,0.004]
[1750700862073,0.9754878,102570.0,102560.0,0.004]
[1750700862929,0.44129939,102570.0,102560.0,0.004]
[1750700863151,0.10129939,102570.0,102560.0,0.004]
[1750700863336,0.10129939,102570.0,102560.0,0.0354]
[1750700863337,0.44129939,102570.0,102560.0,0.0354]
[1750700863554,0.44129939,102570.0,102560.0,0.004]
[1750700864166,0.9754878,102570.0,102560.0,0.004]
[1750700864387,0.44129939,102570.0,102560.0,0.004]
[1750700864945,1.13483658,102570.0,102560.0,0.004]
[1750700865149,6.61878284,102570.0,102560.0,0.004]
[1750700865352,6.80929452,102570.0,102560.0,0.004]
[1750700865809,5.23975785,102560.0,102550.0,0.0002]
[1750700866019,6.52706574,102560.0,102550.0,0.0002]
[1750700866217,6.62736513,102560.0,102550.0,0.0002]
[1750700866469,6.52706574,102560.0,102550.0,0.0002]
[1750700866675,6.5541551,102560.0,102550.0,0.0002]
[1750700867046,6.4923551,102560.0,102530.0,0.0002]
[1750700867256,5.75940541,102540.0,102530.0,0.0002]
[1750700867453,5.9243048,102540.0,102530.0,0.0002]
[1750700867653,6.08914504,102540.0,102530.0,0.0002]
[1750700867941,6.12305755,102540.0,102530.0,0.0002]
[1750700868434,6.12305755,102540.0,102530.0,0.00066061]
[1750700868621,5.35175785,102530.0,102520.0,0.004]
[1750700868860,6.83831923,102530.0,102520.0,0.00413805]
[1750700869610,6.86152191,102530.0,102520.0,0.00413805]
[1750700870035,6.44622403,102520.0,102510.0,0.0002]
[1750700870224,6.52625048,102520.0,102510.0,0.0002]
[1750700870398,6.51943406,102520.0,102510.0,0.0002]
[1750700870810,6.6362583,102520.0,102510.0,0.0002]
[1750700871013,6.8699783,102520.0,102510.0,0.0002]
[1750700871338,6.84288894,102520.0,102510.0,0.0002]
[1750700871548,6.8699783,102520.0,102510.0,0.0002]
[1750700871755,6.8199783,102520.0,102510.0,0.0002]
[1750700871962,6.89908894,102520.0,102510.0,0.0012]
[1750700872178,6.89908894,102520.0,102510.0,0.0022]
[1750700872602,6.9261783,102520.0,102510.0,0.0022]
[1750700873032,0.87418841,102490.0,102480.0,0.0042]
[1750700873249,0.9744878,102490.0,102480.0,0.00402174]
[1750700874579,0.34,102490.0,102480.0,0.07637322]
[1750700875209,0.36418694,102490.0,102480.0,0.07937322]
[1750700875943,0.341,102490.0,102480.0,0.07936835]
[1750700876157,0.36417975,102490.0,102480.0,0.07936835]
[1750700876373,0.341,102490.0,102480.0,0.07936835]
[1750700877020,0.36417915,102490.0,102480.0,0.07936835]
[1750700877665,0.99866695,102490.0,102480.0,0.07936835]
[1750700877883,0.99866695,102490.0,102480.0,0.01776835]
[1750700878090,0.99866695,102490.0,102480.0,0.0352641]
[1750700879143,0.99866695,102490.0,102480.0,0.00902174]
[1750700879360,1.0278483,102490.0,102480.0,0.01777993]
[1750700880004,6.10946978,102490.0,102480.0,0.00902174]
[1750700880214,6.08028843,102490.0,102480.0,0.00902174]
[1750700880654,5.98115512,102490.0,102480.0,0.00902174]
[1750700880876,5.93734446,102490.0,102480.0,0.00902174]
[1750700881099,6.05870716,102490.0,102480.0,0.00902174]
[1750700881322,6.02659388,102490.0,102480.0,0.00902174]
[1750700881539,5.41486462,102490.0,102480.0,0.00902174]
[1750700881757,1.03732862,102490.0,102480.0,0.00902174]
[1750700882224,0.36419034,102490.0,102480.0,0.10060312]
[1750700883763,1.02766352,102490.0,102480.0,0.10059964]
[1750700883973,1.02766352,102490.0,102480.0,0.03529964]
[1750700884184,1.02766352,102490.0,102480.0,0.0353042]
[1750700884393,1.066314,102490.0,102480.0,0.0353042]
[1750700885680,0.53212559,102490.0,102480.0,0.0353042]
[1750700885894,0.53212559,102490.0,102480.0,0.0665042]
[1750700886312,0.53212559,102490.0,102480.0,0.0978042]
[1750700886524,1.066314,102490.0,102480.0,0.0978042]
[1750700886732,1.03732862,102490.0,102480.0,0.0353042]
[1750700886949,0.56150291,102490.0,102480.0,0.0353042]
[1750700887175,0.53216323,102490.0,102480.0,0.09781344]
[1750700887427,0.43186384,102490.0,102480.0,0.09781344]
[1750700887636,0.43186384,102490.0,102480.0,0.08583144]
[1750700888100,0.53216323,102490.0,102480.0,0.02333144]
[1750700888312,1.03732862,102490.0,102480.0,0.02333144]
[1750700888529,1.03632862,102490.0,102480.0,0.02333144]
[1750700888818,1.09469132,102490.0,102480.0,0.02533144]